[Event "*** MasterClass Titled Tuesday Blitz"]
[Site "Chess.com"]
[Date "2017.09.05"]
[Round "5"]
[White "Adham_Fawzy"]
[Black "Rokis13"]
[Result "0-1"]
[WhiteElo "2382"]
[BlackElo "2366"]
[TimeControl "180+2"]
[EndTime "14:16:59 PDT"]
[Termination "Rokis13 won by resignation"]

1. e4 {[%clk 0:03:01.9]} 1... e5 {[%clk 0:02:58.6]} 2. Nf3 {[%clk 0:03:01.7]}
2... Nc6 {[%clk 0:02:59.7]} 3. Bb5 {[%clk 0:03:02.3]} 3... Nge7 {[%clk
0:02:59.4]} 4. O-O {[%clk 0:03:02.1]} 4... a6 {[%clk 0:03:00.7]} 5. Ba4 {[%clk
0:03:01.4]} 5... g6 {[%clk 0:02:59.5]} 6. c3 {[%clk 0:02:56.2]} 6... Bg7 {[%clk
0:03:00.2]} 7. d4 {[%clk 0:02:57.4]} 7... b5 {[%clk 0:03:01.6]} 8. Bc2 {[%clk
0:02:57.8]} 8... exd4 {[%clk 0:03:03.5]} 9. cxd4 {[%clk 0:02:58.8]} 9... O-O
{[%clk 0:03:05.9]} 10. d5 {[%clk 0:02:59.5]} 10... Na5 {[%clk 0:03:07.2]} 11.
Nc3 {[%clk 0:02:53.7]} 11... d6 {[%clk 0:03:07.9]} 12. Bg5 {[%clk 0:02:52.3]}
12... h6 {[%clk 0:03:06.7]} 13. Be3 {[%clk 0:02:43.4]} 13... Nc4 {[%clk
0:03:08.4]} 14. Bc1 {[%clk 0:02:20.2]} 14... Bd7 {[%clk 0:03:10.2]} 15. Rb1
{[%clk 0:02:20.4]} 15... g5 {[%clk 0:03:07.2]} 16. Nd4 {[%clk 0:02:19.3]} 16...
Ng6 {[%clk 0:03:03.6]} 17. b3 {[%clk 0:02:19.1]} 17... Nce5 {[%clk 0:02:58.4]}
18. Nf5 {[%clk 0:02:18.9]} 18... Qf6 {[%clk 0:02:50.6]} 19. Nxg7 {[%clk
0:02:17.4]} 19... Kxg7 {[%clk 0:02:52.1]} 20. Ne2 {[%clk 0:02:14.2]} 20... Kh7
{[%clk 0:02:39.4]} 21. Nd4 {[%clk 0:01:56.3]} 21... Nh4 {[%clk 0:02:13.8]} 22.
f4 {[%clk 0:01:43.2]} 22... gxf4 {[%clk 0:01:58.5]} 23. Bxf4 {[%clk 0:01:45.1]}
23... Rg8 {[%clk 0:01:39.8]} 24. Bg3 {[%clk 0:01:43.7]} 24... Qg5 {[%clk
0:01:40.6]} 25. Qe1 {[%clk 0:01:35]} 25... Rae8 {[%clk 0:01:22.1]} 26. Rd1
{[%clk 0:01:26.9]} 26... Rg7 {[%clk 0:01:17.8]} 27. Rd2 {[%clk 0:01:26.9]} 27...
Nhg6 {[%clk 0:01:13.5]} 28. Bd1 {[%clk 0:01:16]} 28... Ng4 {[%clk 0:01:01.3]}
29. h3 {[%clk 0:00:36.1]} 29... Ne3 {[%clk 0:00:51.2]} 30. h4 {[%clk 0:00:36.6]}
30... Nxh4 {[%clk 0:00:17.2]} 31. Bxh4 {[%clk 0:00:37.2]} 31... Nxg2 {[%clk
0:00:18.5]} 32. Bxg5 {[%clk 0:00:36.3]} 32... Nxe1 {[%clk 0:00:18.7]} 33. Rxe1
{[%clk 0:00:36.7]} 33... Rxg5+ {[%clk 0:00:17.9]} 34. Rg2 {[%clk 0:00:37.4]}
34... Rxd5 {[%clk 0:00:19]} 35. Nf3 {[%clk 0:00:33.1]} 35... Rd3 {[%clk
0:00:17.6]} 36. Bc2 {[%clk 0:00:33.1]} 36... Rxf3 {[%clk 0:00:17.3]} 37. Bb1
{[%clk 0:00:25.8]} 37... Re5 {[%clk 0:00:19]} 38. Rc1 {[%clk 0:00:25.3]} 38...
c5 {[%clk 0:00:19]} 39. Rd1 {[%clk 0:00:26.3]} 39... Be6 {[%clk 0:00:15]} 40.
Rxd6 {[%clk 0:00:25.3]} 40... Rc3 {[%clk 0:00:14.6]} 41. Bc2 {[%clk 0:00:21.4]}
41... Rg5 {[%clk 0:00:16]} 42. Rd2 {[%clk 0:00:16.8]} 42... Kg7 {[%clk
0:00:15.1]} 43. Kf2 {[%clk 0:00:16.2]} 43... Rxg2+ {[%clk 0:00:15.1]} 44. Kxg2
{[%clk 0:00:17.1]} 44... Kf6 {[%clk 0:00:17.2]} 45. Kf2 {[%clk 0:00:18.1]} 45...
Ke5 {[%clk 0:00:18.9]} 46. Ke2 {[%clk 0:00:16.9]} 46... h5 {[%clk 0:00:19.9]}
47. Bd3 {[%clk 0:00:18.1]} 47... c4 {[%clk 0:00:20.5]} 48. bxc4 {[%clk
0:00:19.3]} 48... bxc4 {[%clk 0:00:20.4]} 49. Bb1 {[%clk 0:00:19.2]} 49... h4
{[%clk 0:00:20.4]} 50. Rd8 {[%clk 0:00:19.6]} 50... h3 {[%clk 0:00:19.3]} 51.
Rh8 {[%clk 0:00:20.1]} 51... Rc1 {[%clk 0:00:19.7]} 52. Rh5+ {[%clk 0:00:15.3]}
52... Kd4 {[%clk 0:00:20.8]} 0-1

[Event "*** MasterClass Titled Tuesday Blitz"]
[Site "Chess.com"]
[Date "2017.09.05"]
[Round "5"]
[White "fastestmindalive"]
[Black "kleinebeer98"]
[Result "0-1"]
[WhiteElo "2612"]
[BlackElo "2461"]
[TimeControl "180+2"]
[EndTime "14:17:03 PDT"]
[Termination "kleinebeer98 won by resignation"]

1. e4 {[%clk 0:03:01.9]} 1... e5 {[%clk 0:03:00.5]} 2. Nf3 {[%clk 0:02:57.5]}
2... Nc6 {[%clk 0:03:00.6]} 3. d4 {[%clk 0:02:55.4]} 3... exd4 {[%clk
0:03:01.6]} 4. Bc4 {[%clk 0:02:56.6]} 4... Nf6 {[%clk 0:03:02.7]} 5. e5 {[%clk
0:02:57.9]} 5... d5 {[%clk 0:03:03.8]} 6. Bb5 {[%clk 0:02:59.6]} 6... Nd7 {[%clk
0:03:05.5]} 7. O-O {[%clk 0:03:00]} 7... Be7 {[%clk 0:03:05.7]} 8. Re1 {[%clk
0:03:00.8]} 8... O-O {[%clk 0:03:05.5]} 9. Nbd2 {[%clk 0:03:02]} 9... f6 {[%clk
0:02:56.8]} 10. e6 {[%clk 0:02:54.4]} 10... Nde5 {[%clk 0:02:50.3]} 11. Nb3
{[%clk 0:02:54.8]} 11... Bxe6 {[%clk 0:02:41]} 12. Bxc6 {[%clk 0:02:42.9]} 12...
bxc6 {[%clk 0:02:40.4]} 13. Nxe5 {[%clk 0:02:26.5]} 13... fxe5 {[%clk
0:02:42.3]} 14. Rxe5 {[%clk 0:02:27.6]} 14... Qd6 {[%clk 0:02:04.6]} 15. Qe1
{[%clk 0:02:18.7]} 15... Rf6 {[%clk 0:01:14.8]} 16. Nxd4 {[%clk 0:02:16.3]}
16... Bf8 {[%clk 0:01:07.5]} 17. Rxe6 {[%clk 0:02:10]} 17... Rxe6 {[%clk
0:01:07.3]} 18. Qxe6+ {[%clk 0:02:10]} 18... Qxe6 {[%clk 0:01:08.3]} 19. Nxe6
{[%clk 0:02:11.9]} 19... Re8 {[%clk 0:01:10]} 20. Bf4 {[%clk 0:02:03.9]} 20...
Rxe6 {[%clk 0:01:10.9]} 21. Bxc7 {[%clk 0:02:04.2]} 21... Re2 {[%clk 0:01:11.9]}
22. Rc1 {[%clk 0:02:01.9]} 22... Bc5 {[%clk 0:00:51.8]} 23. Bg3 {[%clk
0:02:01.7]} 23... h5 {[%clk 0:00:44.1]} 24. Kf1 {[%clk 0:02:02.6]} 24... Rd2
{[%clk 0:00:45.6]} 25. Ke1 {[%clk 0:02:03.6]} 25... Rd4 {[%clk 0:00:46.1]} 26.
c3 {[%clk 0:02:03.9]} 26... Re4+ {[%clk 0:00:46.8]} 27. Kf1 {[%clk 0:02:01.7]}
27... h4 {[%clk 0:00:46.2]} 28. Bc7 {[%clk 0:02:02.5]} 28... Re7 {[%clk
0:00:42.9]} 29. Bf4 {[%clk 0:02:03.4]} 29... Rf7 {[%clk 0:00:42.6]} 30. g3
{[%clk 0:01:08.6]} 30... g5 {[%clk 0:00:43.9]} 31. Bc7 {[%clk 0:00:23]} 31...
Rxf2+ {[%clk 0:00:44.1]} 32. Ke1 {[%clk 0:00:24.1]} 32... h3 {[%clk 0:00:42.7]}
33. g4 {[%clk 0:00:24.7]} 33... Rg2 {[%clk 0:00:44.1]} 34. Rd1 {[%clk
0:00:21.4]} 34... Rxg4 {[%clk 0:00:39.3]} 35. Rd3 {[%clk 0:00:22.5]} 35... Rg1+
{[%clk 0:00:40.2]} 36. Ke2 {[%clk 0:00:21.8]} 36... Rg2+ {[%clk 0:00:40.6]} 37.
Kf3 {[%clk 0:00:22.3]} 37... g4+ {[%clk 0:00:40.7]} 38. Kf4 {[%clk 0:00:22]}
38... Kf7 {[%clk 0:00:22.9]} 39. Kf5 {[%clk 0:00:21.3]} 39... Bg1 {[%clk
0:00:21.5]} 40. c4 {[%clk 0:00:09.1]} 40... Bxh2 {[%clk 0:00:15.3]} 41. Bxh2
{[%clk 0:00:10.1]} 41... Rxh2 {[%clk 0:00:17.2]} 42. cxd5 {[%clk 0:00:11.6]}
42... cxd5 {[%clk 0:00:16.5]} 43. Kxg4 {[%clk 0:00:12]} 43... Rxb2 {[%clk
0:00:16.3]} 44. Kxh3 {[%clk 0:00:05]} 44... Ke6 {[%clk 0:00:16.8]} 45. Ra3
{[%clk 0:00:05.7]} 45... Rb7 {[%clk 0:00:11.8]} 46. Kg3 {[%clk 0:00:07]} 46...
Rf7 {[%clk 0:00:10.6]} 47. Re3+ {[%clk 0:00:04.6]} 47... Kd6 {[%clk 0:00:11.8]}
48. Re1 {[%clk 0:00:05]} 48... d4 {[%clk 0:00:12.6]} 49. Kg2 {[%clk 0:00:03.4]}
49... Kd5 {[%clk 0:00:13.7]} 50. a4 {[%clk 0:00:04.2]} 50... d3 {[%clk
0:00:14.6]} 51. Rf1 {[%clk 0:00:04.1]} 51... Rg7+ {[%clk 0:00:07.6]} 52. Kf2
{[%clk 0:00:04.9]} 52... Rf7+ {[%clk 0:00:08.4]} 53. Kg2 {[%clk 0:00:06.4]}
53... Rxf1 {[%clk 0:00:10.3]} 54. Kxf1 {[%clk 0:00:07.8]} 54... a5 {[%clk
0:00:08.4]} 55. Ke1 {[%clk 0:00:07.9]} 55... Ke4 {[%clk 0:00:09.9]} 56. Kd2
{[%clk 0:00:08.8]} 56... Kd4 {[%clk 0:00:11.4]} 57. Kd1 {[%clk 0:00:10]} 57...
Kc4 {[%clk 0:00:12.4]} 58. Kd2 {[%clk 0:00:10.8]} 58... Kd4 {[%clk 0:00:12.9]}
59. Kd1 {[%clk 0:00:11.2]} 59... Kc3 {[%clk 0:00:13.9]} 60. Kc1 {[%clk
0:00:12.4]} 60... Kb3 {[%clk 0:00:15.1]} 61. Kd2 {[%clk 0:00:13.8]} 61... Kxa4
{[%clk 0:00:16.6]} 62. Kc3 {[%clk 0:00:13.4]} 62... Ka3 {[%clk 0:00:15.9]} 63.
Kxd3 {[%clk 0:00:13.1]} 63... Kb2 {[%clk 0:00:17]} 0-1

[Event "*** MasterClass Titled Tuesday Blitz"]
[Site "Chess.com"]
[Date "2017.09.05"]
[Round "5"]
[White "DrVitman"]
[Black "Fandorine"]
[Result "0-1"]
[WhiteElo "2493"]
[BlackElo "2673"]
[TimeControl "180+2"]
[EndTime "14:17:15 PDT"]
[Termination "Fandorine won on time"]

1. d4 {[%clk 0:03:01.9]} 1... Nf6 {[%clk 0:03:01.4]} 2. c4 {[%clk 0:03:02.7]}
2... e6 {[%clk 0:03:00.6]} 3. Nf3 {[%clk 0:03:03.6]} 3... c5 {[%clk 0:03:00]} 4.
d5 {[%clk 0:03:04.2]} 4... exd5 {[%clk 0:03:00.2]} 5. cxd5 {[%clk 0:03:06.1]}
5... g6 {[%clk 0:03:01.5]} 6. Nc3 {[%clk 0:03:07.5]} 6... d6 {[%clk 0:03:01.8]}
7. Nd2 {[%clk 0:03:08.4]} 7... Bg7 {[%clk 0:03:02.3]} 8. Nc4 {[%clk 0:03:08.9]}
8... O-O {[%clk 0:03:03.4]} 9. Bf4 {[%clk 0:03:08.8]} 9... Nbd7 {[%clk
0:03:04.6]} 10. Bxd6 {[%clk 0:03:03.8]} 10... Re8 {[%clk 0:03:03.2]} 11. e3
{[%clk 0:03:02.4]} 11... Ne4 {[%clk 0:02:06.9]} 12. Nxe4 {[%clk 0:03:00.3]}
12... Rxe4 {[%clk 0:02:08.1]} 13. Bg3 {[%clk 0:02:31.4]} 13... Nb6 {[%clk
0:01:57.7]} 14. Nd6 {[%clk 0:02:22.3]} 14... Rb4 {[%clk 0:01:56]} 15. Be2 {[%clk
0:02:14.6]} 15... Bxb2 {[%clk 0:01:27.8]} 16. O-O {[%clk 0:02:14.6]} 16... Bxa1
{[%clk 0:01:18.3]} 17. Qxa1 {[%clk 0:02:16.5]} 17... Nxd5 {[%clk 0:01:10.7]} 18.
Rd1 {[%clk 0:01:33.6]} 18... Be6 {[%clk 0:01:08.6]} 19. e4 {[%clk 0:01:33.5]}
19... Nb6 {[%clk 0:00:54.1]} 20. Nxf7 {[%clk 0:01:11.8]} 20... Bxf7 {[%clk
0:00:47.6]} 21. Rxd8+ {[%clk 0:01:10.3]} 21... Rxd8 {[%clk 0:00:49.5]} 22. Be5
{[%clk 0:01:02.6]} 22... Rxe4 {[%clk 0:00:29.9]} 23. Bh8 {[%clk 0:00:56.4]}
23... Kf8 {[%clk 0:00:31]} 24. Bf3 {[%clk 0:00:54.5]} 24... Re6 {[%clk
0:00:27.4]} 25. Bxb7 {[%clk 0:00:52.6]} 25... Red6 {[%clk 0:00:22.1]} 26. Bf3
{[%clk 0:00:46.5]} 26... Bd5 {[%clk 0:00:16.6]} 27. Bxd5 {[%clk 0:00:40.5]}
27... Nxd5 {[%clk 0:00:13.7]} 28. Qg7+ {[%clk 0:00:40.4]} 28... Ke8 {[%clk
0:00:14.3]} 29. Qxa7 {[%clk 0:00:38]} 29... Nf4 {[%clk 0:00:04.7]} 30. h4 {[%clk
0:00:30.4]} 30... Ne6 {[%clk 0:00:03.1]} 31. Qxh7 {[%clk 0:00:29]} 31... Nf4
{[%clk 0:00:03.8]} 32. Qa7 {[%clk 0:00:20]} 32... Rd1+ {[%clk 0:00:04.7]} 33.
Kh2 {[%clk 0:00:19.7]} 33... Ne6 {[%clk 0:00:06]} 34. Bf6 {[%clk 0:00:18.5]}
34... R8d7 {[%clk 0:00:07]} 35. Qa8+ {[%clk 0:00:16.4]} 35... Kf7 {[%clk
0:00:08.5]} 36. Qf3 {[%clk 0:00:16.7]} 36... R1d3 {[%clk 0:00:09.5]} 37. Qc6
{[%clk 0:00:12.5]} 37... Kxf6 {[%clk 0:00:10.7]} 38. g4 {[%clk 0:00:13.3]} 38...
Rd2 {[%clk 0:00:09.5]} 39. Kg3 {[%clk 0:00:12.7]} 39... R7d3+ {[%clk 0:00:07]}
40. f3 {[%clk 0:00:11.6]} 40... Rd6 {[%clk 0:00:08.6]} 41. g5+ {[%clk
0:00:09.3]} 41... Kf7 {[%clk 0:00:10]} 42. Qb7+ {[%clk 0:00:08.8]} 42... Rd7
{[%clk 0:00:11.1]} 43. Qa8 {[%clk 0:00:08.1]} 43... Ng7 {[%clk 0:00:10.6]} 44.
Qc6 {[%clk 0:00:05.5]} 44... Nf5+ {[%clk 0:00:11.5]} 45. Kh3 {[%clk 0:00:06.4]}
45... R2d6 {[%clk 0:00:08]} 46. Qxc5 {[%clk 0:00:05.1]} 46... Rd4 {[%clk
0:00:09.6]} 47. Qc6 {[%clk 0:00:02.8]} 47... Rxh4+ {[%clk 0:00:10.6]} 48. Kg2
{[%clk 0:00:04.5]} 48... Rd2+ {[%clk 0:00:11.5]} 49. Kg1 {[%clk 0:00:06.1]}
49... Rd1+ {[%clk 0:00:07.1]} 50. Kg2 {[%clk 0:00:07.3]} 50... Rd2+ {[%clk
0:00:08.5]} 51. Kg1 {[%clk 0:00:08.5]} 51... Rd6 {[%clk 0:00:10.1]} 52. Qc7+
{[%clk 0:00:08.6]} 52... Ke6 {[%clk 0:00:11.1]} 53. Qc8+ {[%clk 0:00:09.4]}
53... Ke5 {[%clk 0:00:10.5]} 54. Qe8+ {[%clk 0:00:10.2]} 54... Kf4 {[%clk
0:00:10.1]} 55. Qe4+ {[%clk 0:00:11]} 55... Kxg5 {[%clk 0:00:08.3]} 56. Qe2
{[%clk 0:00:11.5]} 56... Rh1+ {[%clk 0:00:07.7]} 57. Kg2 {[%clk 0:00:10.2]}
57... Rhd1 {[%clk 0:00:08.7]} 58. Qe4 {[%clk 0:00:09.1]} 58... R6d2+ {[%clk
0:00:08.8]} 0-1

[Event "*** MasterClass Titled Tuesday Blitz"]
[Site "Chess.com"]
[Date "2017.09.05"]
[Round "5"]
[White "kikydu96"]
[Black "MyleneFarmer"]
[Result "0-1"]
[WhiteElo "2314"]
[BlackElo "2429"]
[TimeControl "180+2"]
[EndTime "14:18:02 PDT"]
[Termination "MyleneFarmer won by resignation"]

1. b3 {[%clk 0:03:01.5]} 1... e5 {[%clk 0:02:55.1]} 2. Bb2 {[%clk 0:03:02.2]}
2... Nc6 {[%clk 0:02:50.8]} 3. e3 {[%clk 0:03:02.9]} 3... d5 {[%clk 0:02:47.1]}
4. Bb5 {[%clk 0:03:03.1]} 4... Bd6 {[%clk 0:02:47.3]} 5. Nf3 {[%clk 0:03:01.6]}
5... Qe7 {[%clk 0:02:45.4]} 6. c4 {[%clk 0:03:01.1]} 6... a6 {[%clk 0:02:29.3]}
7. cxd5 {[%clk 0:02:59.4]} 7... axb5 {[%clk 0:02:31.2]} 8. dxc6 {[%clk
0:03:00.4]} 8... bxc6 {[%clk 0:02:33.1]} 9. Qc2 {[%clk 0:03:00.3]} 9... Bb7
{[%clk 0:02:31.8]} 10. d3 {[%clk 0:02:58.4]} 10... Nf6 {[%clk 0:02:31.1]} 11.
O-O {[%clk 0:02:59.2]} 11... c5 {[%clk 0:02:30.6]} 12. Nbd2 {[%clk 0:02:59.7]}
12... e4 {[%clk 0:02:25.1]} 13. Bxf6 {[%clk 0:02:57.3]} 13... Qxf6 {[%clk
0:01:37.5]} 14. Nxe4 {[%clk 0:02:58.1]} 14... Qg6 {[%clk 0:01:19.1]} 15. Ned2
{[%clk 0:02:10.1]} 15... O-O {[%clk 0:01:04.9]} 16. e4 {[%clk 0:02:01.1]} 16...
Ra3 {[%clk 0:01:05]} 17. Nb1 {[%clk 0:01:59.4]} 17... Ra6 {[%clk 0:01:04.8]} 18.
Nc3 {[%clk 0:02:00.6]} 18... Bc6 {[%clk 0:00:36]} 19. a4 {[%clk 0:01:56.8]}
19... Rfa8 {[%clk 0:00:34.3]} 20. Qb2 {[%clk 0:01:48.5]} 20... b4 {[%clk
0:00:25]} 21. Nb1 {[%clk 0:01:45.6]} 21... c4 {[%clk 0:00:24.8]} 22. bxc4 {[%clk
0:01:41.3]} 22... Rxa4 {[%clk 0:00:25.8]} 23. Nbd2 {[%clk 0:01:41]} 23... h6
{[%clk 0:00:24.8]} 24. Rxa4 {[%clk 0:01:40]} 24... Rxa4 {[%clk 0:00:26.7]} 25.
Ra1 {[%clk 0:01:41.3]} 25... Qh5 {[%clk 0:00:23.3]} 26. Rxa4 {[%clk 0:01:37.1]}
26... Bxa4 {[%clk 0:00:25.2]} 27. d4 {[%clk 0:01:38.3]} 27... b3 {[%clk
0:00:18.2]} 28. Nxb3 {[%clk 0:01:35.3]} 28... Bxh2+ {[%clk 0:00:18.3]} 29. Nxh2
{[%clk 0:01:28.7]} 29... Qd1+ {[%clk 0:00:19.7]} 30. Nf1 {[%clk 0:01:30.1]}
30... Bxb3 {[%clk 0:00:21.4]} 31. Qc3 {[%clk 0:01:16.1]} 31... Bc2 {[%clk
0:00:21.8]} 32. Qd2 {[%clk 0:01:01.6]} 32... Qb1 {[%clk 0:00:23]} 33. f3 {[%clk
0:01:02.4]} 33... Bd3 {[%clk 0:00:24.7]} 34. Qf2 {[%clk 0:01:03.5]} 34... Bxc4
{[%clk 0:00:26.4]} 35. g3 {[%clk 0:01:04.1]} 35... Qd1 {[%clk 0:00:24.4]} 36.
Kg2 {[%clk 0:01:04.5]} 36... Bxf1+ {[%clk 0:00:24.9]} 37. Qxf1 {[%clk
0:01:04.8]} 37... Qxd4 {[%clk 0:00:26.5]} 38. Qc1 {[%clk 0:01:03]} 38... c5
{[%clk 0:00:27]} 39. Qa3 {[%clk 0:00:44.7]} 39... g6 {[%clk 0:00:22.6]} 40. Qa8+
{[%clk 0:00:42.8]} 40... Kg7 {[%clk 0:00:23.5]} 41. f4 {[%clk 0:00:44.7]} 41...
c4 {[%clk 0:00:24]} 42. e5 {[%clk 0:00:42.8]} 42... c3 {[%clk 0:00:24.1]} 43.
Qc6 {[%clk 0:00:43.8]} 43... Qd2+ {[%clk 0:00:18.4]} 44. Kh3 {[%clk 0:00:44.9]}
44... c2 {[%clk 0:00:17]} 45. Qf6+ {[%clk 0:00:44.8]} 45... Kg8 {[%clk
0:00:13.2]} 46. e6 {[%clk 0:00:46.1]} 46... fxe6 {[%clk 0:00:07.7]} 47. Qxg6+
{[%clk 0:00:39.6]} 47... Kf8 {[%clk 0:00:09]} 48. Qf6+ {[%clk 0:00:40.9]} 48...
Ke8 {[%clk 0:00:10.6]} 49. Qxe6+ {[%clk 0:00:42.3]} 49... Kd8 {[%clk 0:00:12.2]}
50. Qb6+ {[%clk 0:00:34.6]} 50... Kd7 {[%clk 0:00:11.2]} 51. Qb7+ {[%clk
0:00:32.9]} 51... Ke8 {[%clk 0:00:10.5]} 52. Qe4+ {[%clk 0:00:31.3]} 52... Kd8
{[%clk 0:00:10.2]} 53. Qa8+ {[%clk 0:00:31.4]} 53... Kc7 {[%clk 0:00:11.8]} 54.
Qa7+ {[%clk 0:00:31.4]} 54... Kc6 {[%clk 0:00:13.4]} 55. Qa6+ {[%clk 0:00:28.5]}
55... Kc5 {[%clk 0:00:14.9]} 56. Qc8+ {[%clk 0:00:29.6]} 56... Kb4 {[%clk
0:00:15.5]} 57. Qb7+ {[%clk 0:00:28.9]} 57... Kc3 {[%clk 0:00:15.9]} 58. Qc6+
{[%clk 0:00:25.6]} 58... Kb3 {[%clk 0:00:16.8]} 59. Qb5+ {[%clk 0:00:20.8]}
59... Qb4 {[%clk 0:00:16.4]} 60. Qd3+ {[%clk 0:00:18]} 60... Kb2 {[%clk
0:00:12.4]} 61. Qe2 {[%clk 0:00:14.3]} 61... Kb1 {[%clk 0:00:07.9]} 62. Qd3
{[%clk 0:00:15]} 62... Kb2 {[%clk 0:00:08.2]} 63. Qe2 {[%clk 0:00:16]} 63... Qc5
{[%clk 0:00:06.4]} 64. Kg4 {[%clk 0:00:13]} 64... Kb1 {[%clk 0:00:06.9]} 65. Qd3
{[%clk 0:00:14.1]} 65... Kb2 {[%clk 0:00:08.1]} 66. Qe2 {[%clk 0:00:15.3]} 66...
Qd5 {[%clk 0:00:05.8]} 67. Qf2 {[%clk 0:00:02.4]} 67... Qd7+ {[%clk 0:00:05.3]}
68. Kh4 {[%clk 0:00:03.5]} 68... Qd8+ {[%clk 0:00:05.3]} 69. Kh5 {[%clk
0:00:04.3]} 69... Kb1 {[%clk 0:00:06.8]} 70. Qxc2+ {[%clk 0:00:02.9]} 70... Kxc2
{[%clk 0:00:07.9]} 71. Kxh6 {[%clk 0:00:04]} 71... Qg8 {[%clk 0:00:07.3]} 72. f5
{[%clk 0:00:04.1]} 72... Qxg3 {[%clk 0:00:08.3]} 73. f6 {[%clk 0:00:05.7]} 73...
Qg8 {[%clk 0:00:09.1]} 0-1

[Event "*** MasterClass Titled Tuesday Blitz"]
[Site "Chess.com"]
[Date "2017.09.05"]
[Round "6"]
[White "TrickyTrapChess"]
[Black "sergiochess83"]
[Result "1/2-1/2"]
[WhiteElo "2320"]
[BlackElo "2762"]
[TimeControl "180+2"]
[EndTime "14:21:08 PDT"]
[Termination "Game drawn by agreement"]

1. c4 {[%clk 0:03:01.4]} 1... e5 {[%clk 0:02:59.3]} 2. Nc3 {[%clk 0:03:01.3]}
2... Nf6 {[%clk 0:02:59.5]} 3. g3 {[%clk 0:03:02.1]} 3... Bb4 {[%clk 0:02:59.5]}
4. Bg2 {[%clk 0:03:01.1]} 4... O-O {[%clk 0:02:59.8]} 5. e4 {[%clk 0:03:00.5]}
5... Nc6 {[%clk 0:02:59.5]} 6. Nge2 {[%clk 0:02:59.2]} 6... a6 {[%clk
0:03:00.1]} 7. a3 {[%clk 0:02:57.2]} 7... Bc5 {[%clk 0:03:01.1]} 8. O-O {[%clk
0:02:56.4]} 8... d6 {[%clk 0:03:01.9]} 9. d3 {[%clk 0:02:54.8]} 9... Nd4 {[%clk
0:03:01.1]} 10. h3 {[%clk 0:02:51.8]} 10... c6 {[%clk 0:03:00.1]} 11. b4 {[%clk
0:02:50.8]} 11... Ba7 {[%clk 0:03:00.4]} 12. Be3 {[%clk 0:02:51.3]} 12... Nxe2+
{[%clk 0:03:01.3]} 13. Qxe2 {[%clk 0:02:50.8]} 13... Bxe3 {[%clk 0:03:02.2]} 14.
Qxe3 {[%clk 0:02:50.1]} 14... b5 {[%clk 0:03:01.6]} 15. f4 {[%clk 0:02:49.6]}
1/2-1/2

[Event "*** MasterClass Titled Tuesday Blitz"]
[Site "Chess.com"]
[Date "2017.09.05"]
[Round "6"]
[White "belisarius64"]
[Black "kleinebeer98"]
[Result "0-1"]
[WhiteElo "2327"]
[BlackElo "2468"]
[TimeControl "180+2"]
[EndTime "14:25:18 PDT"]
[Termination "kleinebeer98 won by resignation"]

1. e4 {[%clk 0:03:01.9]} 1... e5 {[%clk 0:03:00.6]} 2. Nf3 {[%clk 0:03:01.8]}
2... Nc6 {[%clk 0:03:01.1]} 3. Bc4 {[%clk 0:03:02.9]} 3... Nf6 {[%clk
0:03:01.4]} 4. d3 {[%clk 0:03:03.5]} 4... h6 {[%clk 0:03:02.2]} 5. O-O {[%clk
0:03:01.9]} 5... d6 {[%clk 0:03:02.3]} 6. c3 {[%clk 0:03:02.3]} 6... g5 {[%clk
0:03:00.2]} 7. Re1 {[%clk 0:02:57.2]} 7... g4 {[%clk 0:02:56.5]} 8. Nfd2 {[%clk
0:02:58.1]} 8... Qe7 {[%clk 0:02:51.1]} 9. Nf1 {[%clk 0:02:55.7]} 9... Be6
{[%clk 0:02:49.3]} 10. Ng3 {[%clk 0:02:56.9]} 10... O-O-O {[%clk 0:02:48.4]} 11.
Nd2 {[%clk 0:02:51.2]} 11... h5 {[%clk 0:02:44.2]} 12. Nf5 {[%clk 0:02:40.2]}
12... Qd7 {[%clk 0:02:34.2]} 13. Bb5 {[%clk 0:02:32.4]} 13... a6 {[%clk
0:02:28.1]} 14. Bxc6 {[%clk 0:02:19.8]} 14... Qxc6 {[%clk 0:02:24.6]} 15. d4
{[%clk 0:02:20.3]} 15... Bxf5 {[%clk 0:02:06.3]} 16. exf5 {[%clk 0:02:19.3]}
16... exd4 {[%clk 0:02:00.2]} 17. cxd4 {[%clk 0:02:22.2]} 17... h4 {[%clk
0:02:01.1]} 18. Nb3 {[%clk 0:02:15.7]} 18... Qd5 {[%clk 0:01:48.3]} 19. Be3
{[%clk 0:02:10.6]} 19... h3 {[%clk 0:01:46.3]} 20. gxh3 {[%clk 0:01:45.5]} 20...
gxh3 {[%clk 0:01:45]} 21. f3 {[%clk 0:01:47.1]} 21... Rg8+ {[%clk 0:01:43.7]}
22. Kh1 {[%clk 0:01:48.3]} 22... Rg2 {[%clk 0:01:43.2]} 23. Rc1 {[%clk
0:01:46.1]} 23... Ng4 {[%clk 0:01:36.1]} 24. Bg1 {[%clk 0:01:29.7]} 24... Rxh2+
{[%clk 0:01:33.1]} 25. Bxh2 {[%clk 0:01:31.3]} 25... Nf2+ {[%clk 0:01:35]} 26.
Kg1 {[%clk 0:01:33]} 26... Nxd1 {[%clk 0:01:36.9]} 27. Rexd1 {[%clk 0:01:31.4]}
27... Qxf3 {[%clk 0:01:32.6]} 28. Rd2 {[%clk 0:01:22.2]} 28... Bh6 {[%clk
0:01:33.7]} 29. Rc3 {[%clk 0:01:23.6]} 29... Rg8+ {[%clk 0:01:33.6]} 0-1

[Event "*** MasterClass Titled Tuesday Blitz"]
[Site "Chess.com"]
[Date "2017.09.05"]
[Round "6"]
[White "novocane"]
[Black "Blitzking4444"]
[Result "0-1"]
[WhiteElo "2144"]
[BlackElo "2094"]
[TimeControl "180+2"]
[EndTime "14:26:13 PDT"]
[Termination "Blitzking4444 won by resignation"]

1. d4 {[%clk 0:03:01.9]} 1... Nf6 {[%clk 0:03:00.6]} 2. c4 {[%clk 0:03:02.1]}
2... e6 {[%clk 0:03:01.6]} 3. Nc3 {[%clk 0:03:02.9]} 3... Bb4 {[%clk 0:03:02.2]}
4. e3 {[%clk 0:03:04.3]} 4... b6 {[%clk 0:03:02.2]} 5. Ne2 {[%clk 0:03:04.8]}
5... c5 {[%clk 0:03:00.7]} 6. a3 {[%clk 0:03:04.4]} 6... Ba5 {[%clk 0:03:01.9]}
7. Rb1 {[%clk 0:03:05]} 7... Qe7 {[%clk 0:03:03.4]} 8. d5 {[%clk 0:02:54.6]}
8... exd5 {[%clk 0:03:04.4]} 9. cxd5 {[%clk 0:02:55.2]} 9... O-O {[%clk
0:03:01.2]} 10. g3 {[%clk 0:02:53.8]} 10... Qe4 {[%clk 0:02:50.7]} 11. b4 {[%clk
0:02:44.3]} 11... Qxh1 {[%clk 0:02:48]} 12. bxa5 {[%clk 0:02:42.7]} 12... d6
{[%clk 0:02:42.9]} 13. Nf4 {[%clk 0:02:02.7]} 13... Ng4 {[%clk 0:02:20.5]} 14.
Bb2 {[%clk 0:01:10.7]} 14... Nxh2 {[%clk 0:02:08.5]} 15. Qd3 {[%clk 0:01:04.4]}
15... Ba6 {[%clk 0:01:58.4]} 16. Nb5 {[%clk 0:00:46.9]} 16... Nxf1 {[%clk
0:01:44.2]} 17. Ke2 {[%clk 0:00:24.9]} 17... Bxb5 {[%clk 0:01:42]} 18. Qxb5
{[%clk 0:00:24.2]} 18... Nxg3+ {[%clk 0:01:41.2]} 19. fxg3 {[%clk 0:00:25.2]}
19... Qxb1 {[%clk 0:01:40.9]} 20. Nh5 {[%clk 0:00:21.7]} 20... Nd7 {[%clk
0:01:02.8]} 21. Qb3 {[%clk 0:00:22.1]} 21... Ne5 {[%clk 0:00:52.9]} 0-1